[Event "4NCL Div 2 2024-25"]
[Site "England"]
[Date "2025.01.26"]
[Round "4.18"]
[White "Dunn, Andrew M"]
[Black "Shearsby, Jude"]
[Result "0-1"]
[Annotator "TA"]
[ECO "E60"]
[WhiteElo "2117"]
[BlackElo "2192"]
[PlyCount "64"]
[EventDate "2024.11.23"]
[EventType "team-tourn"]
[EventCountry "ENG"]
[SourceTitle "playchess.com"]
[Source "ChessBase"]
[SourceQuality "1"]
[TimeControl "40/6000+30:3000+30"]

{[%evp 9,64,15,23,22,27,19,17,27,30,36,14,25,23,13,30,42,28,39,19,-8,-8,-72,134,128,147,148,185,168,166,167,156,126,112,94,122,-73,-73,-65,-71,-93,-83,-92,-84,-97,-89,-86,-74,-104,-68,-146,-86,-161,-158,-335,-334,-414,-411]} 1. d4 {[%emt 0:10:02]} Nf6 {[%emt 0:16:50]} 2. c4 {[%emt 0:00:45]} g6 {[%emt 0:00:05]} 3. h4 {[%emt 0:00:27]} Bg7 {[%emt 0:02:25]} 4. Nc3 {[%emt 0:00:35]} d5 {[%emt 0:00:10]} 5. h5 {[%emt 0:00:34]} Nxh5 {[%emt 0:02:48]} 6. cxd5 {[%emt 0:00:16] E60: King's Indian: Unusual lines and Fianchetto Variation without Nc3.} (6. Nxd5 c6 7. Nc3 Bxd4 $17 (7... Qxd4 8. Qxd4 Bxd4 9. Bh6 $17)) 6... e6 {[%emt 0:01:20]} 7. g4 {[%emt 0:08:30]} Nf6 {[%emt 0:03:11]} 8. dxe6 {[%emt 0:01:32] The position is equal.} Bxe6 {[%emt 0:00:02]} 9. e4 {[%emt 0:04:36]} Bxg4 {[%emt 0:00:02]} 10. f3 {[%emt 0:00:17]} Bh5 {[%emt 0:00:02]} 11. Bg5 $36 {[%emt 0:01:41][%mdl 3072] e5 would now be deadly. White has compensation. White has some pressure.} h6 $146 {[%emt 0:00:01]} (11... O-O 12. Qd2 h6 13. Be3 Nc6 14. O-O-O Qd7 15. Bh3 Qe7 16. e5 Nxe5 17. dxe5 Qxe5 {½-½ Gukhman,S (2014)-Afonasieva,A (2232) Voronezh Petrovsky op 2022 (2)}) 12. Be3 {[%emt 0:00:10]} Nc6 {[%emt 0:01:11]} 13. Qd2 {[%emt 0:18:43]} Qe7 {[%emt 0:00:01]} 14. O-O-O {[%emt 0:01:07] White sacrificed a pawn} (14. Qf2 $5) 14... O-O-O {[%emt 0:00:05][%cal Of6e4]} 15. Qf2 {[%emt 0:10:18]} (15. Be2 $11) 15... a6 $2 {[%emt 0:13:48]} (15... Nxe4 $1 $17 16. Nxe4 f5 17. Rxh5 gxh5) 16. Nge2 $16 {[%emt 0:02:41]} Kb8 {[%emt 0:29:55]} 17. Nf4 {[%emt 0:03:24]} Qe8 {[%emt 0:05:42]} 18. e5 {[%emt 0:09:06]} Nxe5 {[%emt 0:03:09]} 19. dxe5 {[%emt 0:08:25]} Rxd1+ {[%emt 0:00:14]} 20. Kxd1 {[%emt 0:02:06]} Qxe5 {[%emt 0:01:41]} 21. Kc1 {[%emt 0:07:37]} (21. Bg2 {is more complex.} Re8 22. Re1 Rd8+ 23. Kc1) 21... Re8 {[%emt 0:03:47] [#]} 22. Ba7+ {[%emt 0:05:06]} (22. Bd2 $1 $16 {keeps the pressure on.}) 22... Ka8 $17 {[%emt 0:00:06]} 23. Nd3 {[%emt 0:00:31]} Qf5 {[%emt 0:03:21]} 24. Bd4 {[%emt 0:04:45]} Bxf3 {[%emt 0:02:12]} 25. Rh3 {[%emt 0:01:52] [#]} Bg4 {[%emt 0:00:01]} 26. Qxf5 {[%emt 0:00:10]} Bxf5 {[%emt 0:00:14]} 27. Rf3 {[%emt 0:03:06]} h5 {[%emt 0:01:41] ...Bh6+ would now be deadly.} 28. Kc2 {[%emt 0:02:41]} h4 {[%emt 0:06:23]} 29. Bg2 {[%emt 0:02:19]} (29. Bh3 $15) 29... Rh8 {[%emt 0:03:09]} (29... Nh5 $142 30. Bf2 Rd8 (30... Bf6 31. Rxf5 gxf5 32. Nd5 $17)) 30. Bh1 {[%emt 0:01:07]} (30. Bh3 $17 {was worth a try.}) 30... Rd8 {[%emt 0:02:39]} 31. Bf2 {[%emt 0:00:40]} (31. Ne2 $17) 31... Ng4 $19 {[%emt 0:01:12]} 32. Bxh4 {[%emt 0:00:48]} Rh8 {[%emt 0:00:01] Quite a comeback for Black.   Weighted Error Value: White=0.32/Black=0.15 (very precise)   Loses game:     	White=1     	---        Mistake:       	White=4     	Black=2      Inaccurate:     	White=1     	Black=1      OK:         	White=9     	Black=13     Best:        	White=4     	Black=4} 0-1

[Event "4NCL Div 2 2024-25"]
[Site "England"]
[Date "2025.01.26"]
[Round "4.19"]
[White "Baker, Chris W"]
[Black "Walton, Alan J"]
[Result "1/2-1/2"]
[Annotator "TA"]
[ECO "C11"]
[WhiteElo "2158"]
[BlackElo "2025"]
[PlyCount "85"]
[EventDate "2024.11.23"]
[EventType "team-tourn"]
[EventCountry "ENG"]
[SourceTitle "playchess.com"]
[Source "ChessBase"]
[SourceQuality "1"]
[TimeControl "40/6000+30:3000+30"]

{[%evp 17,85,0,16,0,24,6,19,14,43,47,50,0,42,34,42,23,16,10,17,15,25,33,43,43,47,49,52,22,22,10,8,0,54,58,59,55,66,49,68,62,70,72,63,65,179,173,182,184,178,170,154,66,145,116,244,231,227,8,5,17,8,8,66,8,745,714,642,-2,-3,-3]} 1. e4 {[%emt 0:10:03]} e6 {[%emt 0:10:05]} 2. Nf3 {[%emt 0:00:18]} d5 {[%emt 0:00:06]} 3. Nc3 {[%emt 0:00:16]} Nf6 {[%emt 0:00:06]} 4. e5 {[%emt 0:00:42]} Nfd7 {[%emt 0:00:06]} 5. d4 {[%emt 0:00:04]} c5 {[%emt 0:00:04]} 6. dxc5 {[%emt 0:00:07]} Nc6 {[%emt 0:00:15]} 7. Bf4 {[%emt 0:00:56]} Bxc5 {[%emt 0:00:06]} 8. Bd3 {[%emt 0:00:24]} f6 {[%emt 0:00:19]} 9. exf6 {[%emt 0:00:18]} Qxf6 {[%emt 0:01:35]} 10. Bg5 {[%emt 0:02:35][%cal Bf4g5,Bg5h4,Bh4g3,Bg3d6][%mdl 32] C11: French: Classical System: 4 e5 and 4 Bg5 dxe4.} Qf7 {[%emt 0:00:06]} 11. O-O {[%emt 0:03:37]} O-O {[%emt 0:05:13]} 12. Bh4 {[%emt 0:03:20]} h6 {[%emt 0:03:55] Dodges Ng5} 13. Bg3 {[%emt 0:03:21] A sharp opening} a6 {[%emt 0:15:36]} (13... e5 $6 14. Nxd5 Nb6 (14... Qxd5 $2 15. Bh7+ Kxh7 16. Qxd5 $18) 15. Nxb6 (15. Nxe5 Nxe5 16. Nxb6 Nxd3 $14) 15... Bxb6 16. Nh4 $16 (16. Bxe5 Bg4 $16) (16. Nxe5 Nxe5 17. Bxe5 Bf5 $16)) 14. Qe2 {[%emt 0:13:41]} ({White should try} 14. Na4 $14) 14... Nd4 {[%emt 0:01:13]} 15. Nxd4 {[%emt 0:00:50]} Bxd4 {[%emt 0:00:08]} 16. Bd6 $146 {[%emt 0:03:12]} (16. Rad1 $5) (16. Rae1 Nf6 17. Be5 Bxe5 18. Qxe5 Bd7 19. h3 Qh5 20. f4 Rac8 21. f5 Rce8 22. fxe6 Qxe5 23. Rxe5 Rxe6 24. Rxe6 Bxe6 {1-0 Mazzilli,P (2311)-Terry,R (2503) Titled Tuesday intern op 14th Nov Late blitz 2023 (3)}) 16... Rd8 {[%emt 0:04:03]} 17. Rae1 {[%emt 0:09:55]} Nc5 {[%emt 0:15:26]} 18. Be5 {[%emt 0:01:33]} Bxe5 {[%emt 0:06:24]} 19. Qxe5 {[%emt 0:00:21]} Nxd3 {[%emt 0:00:48]} 20. cxd3 {[%emt 0:00:16]} Bd7 {[%emt 0:00:33]} 21. f4 {[%emt 0:03:08]} Rac8 {[%emt 0:04:54]} 22. Rf2 {[%emt 0:09:03]} Qf6 {[%emt 0:02:32]} 23. Qxf6 {[%emt 0:05:18]} gxf6 {[%emt 0:00:05]} 24. f5 {[%emt 0:00:57]} Kf7 {[%emt 0:05:33]} ({Black should try} 24... e5 $1 $11) 25. fxe6+ $14 {[%emt 0:01:47]} Bxe6 {[%emt 0:00:03]} 26. Ref1 {[%emt 0:05:11]} f5 {[%emt 0:00:05]} 27. Ne2 $36 {[%emt 0:07:00][%mdl 2048] White has some pressure.} Rc2 {[%emt 0:01:28]} 28. Nd4 {[%emt 0:01:23][%csl LRc2,LRf5]} Rxf2 {[%emt 0:00:13]} 29. Rxf2 {[%emt 0:01:12][%mdl 4096] Endgame KRB-KRN} Kf6 {[%emt 0:00:50]} 30. g4 {[%emt 0:05:45][%cal Od4e6] White is more active.} Ke5 {[%emt 0:04:10]} (30... Bc8 $14) 31. Nxe6 $18 {[%emt 0:00:49]} (31. gxf5 Bd7 32. Ne6 Bxe6 33. fxe6 Kxe6 $15) 31... Kxe6 {[%emt 0:00:04]} 32. Rxf5 {[%emt 0:00:44] KR-KR. White is a pawn up.} ({And not} 32. gxf5+ Kf6 $11) 32... Rc8 {[%emt 0:00:06]} 33. Rh5 {[%emt 0:00:56]} Rc2 {[%emt 0:01:02]} 34. d4 {[%emt 0:01:59]} (34. Rxh6+ $16 Ke5 35. g5 Rxb2 36. d4+ Kf5 (36... Kxd4 $2 {too greedy.} 37. g6 $18) 37. h4) 34... Rxb2 {[%emt 0:01:03]} (34... Kf6 $1 $14) 35. Rxh6+ $16 {[%emt 0:00:22]} Ke7 {[%emt 0:00:26]} (35... Kf7 $16) 36. g5 {[%emt 0:04:11][%cal Bg4g5,Bg5g6][%mdl 32] and h4 should not be overlooked} Rd2 {[%emt 0:00:40] [#]} 37. Rh4 {[%emt 0:01:25]} (37. h4 $1 $18) 37... Kf7 $1 $11 {[%emt 0:29:39]} 38. Rf4+ {[%emt 0:02:29]} Kg6 $1 {[%emt 0:00:00]} 39. h4 {[%emt 0:00:11]} Kh5 {[%emt 0:00:00]} (39... b5 $1 $11) 40. Rf6 {[%emt 0:01:51]} (40. Rf8 $1 $14) 40... Kxh4 $2 {[%emt 0:00:00][%mdl 8192]} (40... b5 $11) 41. g6 $18 {[%emt 0:50:37] g7 would kill now.} Rxd4 {[%emt 0:22:17] [#]} 42. Kf2 $2 {[%emt 0:01:48]} (42. Rf2 $1 $18) 42... Kh5 $11 {[%emt 0:00:08]} 43. g7 {[%emt 0:01:43] Weighted Error Value: White=0.38/Black=0.36  Loses game:     	---       	Black=1      Missed win:     	White=1     	---        Mistake:       	White=3     	Black=5      Inaccurate:     	White=1     	Black=2      OK:         	White=12    	Black=10     Best:        	White=5     	---        Strong:       	---       	Black=2} 1/2-1/2

[Event "4NCL Div 2 2024-25"]
[Site "England"]
[Date "2025.01.26"]
[Round "4.20"]
[White "Wall, Tim P"]
[Black "Valdepenas Octavio, Javier"]
[Result "0-1"]
[Annotator "TA"]
[ECO "C77"]
[WhiteElo "2168"]
[BlackElo "2145"]
[PlyCount "78"]
[EventDate "2024.11.23"]
[EventType "team-tourn"]
[EventCountry "ENG"]
[SourceTitle "playchess.com"]
[Source "ChessBase"]
[SourceQuality "1"]
[TimeControl "40/6000+30:3000+30"]

{[%evp 14,78,31,30,31,0,0,0,0,0,0,-6,0,-21,-23,-44,-39,-44,15,-43,-43,-45,-61,-67,-60,-124,-114,-187,-180,-165,-154,-160,-170,-175,-144,-196,-190,-170,-178,-158,-8,-16,18,7,7,0,0,13,83,-59,-66,-85,79,-285,-306,-322,-282,-360,-321,-420,-404,-416,-406,-560,-558,-1230,-1168]} 1. e4 {[%emt 0:10:06]} e5 {[%emt 0:10:58]} 2. Nf3 {[%emt 0:01:28]} Nc6 {[%emt 0:00:06]} 3. Bb5 {[%emt 0:00:25]} a6 {[%emt 0:00:06]} 4. Ba4 {[%emt 0:00:28]} Nf6 {[%emt 0:00:07]} 5. d3 {[%emt 0:00:12]} d6 {[%emt 0:00:18]} 6. c3 {[%emt 0:02:55]} g6 {[%emt 0:02:21]} 7. O-O {[%emt 0:01:10]} Bg7 {[%emt 0:00:19]} 8. Re1 {[%emt 0:02:02]} O-O {[%emt 0:00:16] C77: Ruy Lopez: 3...a6 4 Ba4 Nf6, unusual lines.} 9. b4 $146 {[%emt 0:06:06]} (9. Nbd2 Re8 10. h3 h6 11. Nf1 b5 12. Bc2 Rb8 13. d4 exd4 14. cxd4 Nb4 15. Bb1 c5 16. d5 a5 17. a3 {1-0 Carlsen,M (2832)-Erigaisi,A (2778) Titled Tuesday intern op 23rd Jul Late blitz 2024 (6)}) 9... b5 {[%emt 0:05:07]} 10. Bc2 {[%emt 0:04:53]} a5 {[%emt 0:12:39] The position is equal.} 11. bxa5 {[%emt 0:08:18]} Rxa5 {[%emt 0:08:17]} 12. Nbd2 {[%emt 0:03:14]} Be6 {[%emt 0:17:22]} 13. Nb3 {[%emt 0:03:30]} Ra6 {[%emt 0:03:21]} 14. d4 {[%emt 0:05:28]} exd4 {[%emt 0:04:25]} 15. cxd4 {[%emt 0:00:21]} Bg4 {[%emt 0:08:26]} ({Better is} 15... Nb4 $15) 16. h3 {[%emt 0:03:58]} (16. Bd3 $11) 16... Bxf3 $15 {[%emt 0:00:30]} 17. Qxf3 {[%emt 0:00:12]} Nd7 {[%emt 0:01:20]} 18. Be3 {[%emt 0:02:48]} Nb4 {[%emt 0:04:36][%csl LRa2,LRc2] Prevents Bd3} 19. Bb1 {[%emt 0:07:17]} (19. Qe2 $15) 19... c5 $1 $17 {[%emt 0:00:07]} 20. a3 {[%emt 0:09:49]} (20. Qe2 $17) 20... Nc6 $19 {[%emt 0:02:08]} 21. Rd1 {[%emt 0:02:16]} c4 {[%emt 0:03:45][%csl Oc4] Black has a strong passed pawn} 22. Nc1 {[%emt 0:01:11]} Qa8 {[%emt 0:05:35]} 23. h4 {[%emt 0:12:52]} Rc8 {[%emt 0:05:47]} 24. h5 {[%emt 0:01:27]} (24. Qh3 $17 Rc7 (24... Rxa3 $2 25. Rxa3 Qxa3 26. Qxd7 $18) 25. h5) 24... Rxa3 {[%emt 0:04:19]} 25. Rxa3 {[%emt 0:00:20]} Qxa3 {[%emt 0:00:02]} 26. Qg4 {[%emt 0:02:29]} Rd8 {[%emt 0:01:28] Black is much more active.} (26... Rc7 $17 {[%cal Og7d4] ...Bxd4! would now be deadly.} 27. Qf4 Qa4 (27... gxh5 28. Ne2 $17)) 27. Bg5 $1 $11 {[%emt 0:03:27]} Bf6 {[%emt 0:04:10]} (27... Nf6 $6 28. Qh4 $14) 28. Bxf6 $1 {[%emt 0:02:59]} Nxf6 {[%emt 0:00:02]} 29. Qh4 {[%emt 0:00:18]} Nxh5 {[%emt 0:03:30]} 30. d5 $1 {[%emt 0:00:09]} Qa4 {[%emt 0:01:08]} (30... Rc8 $1 $11 {remains equal.} 31. dxc6 Rxc6) 31. Rd2 {[%emt 0:05:23]} (31. Rf1 $16) 31... Qb4 $15 {[%emt 0:02:23][%csl LRb1,LRd2]} (31... Qa3 32. Ne2 $16) 32. dxc6 {[%emt 0:01:42]} Rf8 {[%emt 0:00:56] [#]} (32... Rc8 $1 $17 {and life is bright.} 33. Rd1 Qxb1) 33. Qg5 {[%emt 0:02:55][%mdl 8192] Now White is beyond hope.} Qxb1 $19 {[%emt 0:00:16]} 34. Rxd6 {[%emt 0:00:12] [#] Black must now prevent c7.} Ng7 $1 {[%emt 0:00:45][%cal Og7e6]} (34... Qxe4 $2 {loses.} 35. c7 h6 36. Qe3 $18) 35. f3 {[%emt 0:02:42]} Ne6 {[%emt 0:00:16]} 36. Qd2 {[%emt 0:00:34]} b4 {[%emt 0:00:41]} 37. Kh2 {[%emt 0:00:31]} Qa1 {[%emt 0:00:29]} 38. Rd5 {[%emt 0:01:18]} b3 {[%emt 0:00:19]} 39. Rb5 {[%emt 0:00:46]} c3 {[%emt 0:00:27] Weighted Error Value: White=0.60/Black=0.20 (precise)   Loses game:     	White=1     	---        Mistake:       	White=5     	Black=4      Inaccurate:     	White=4     	Black=1      OK:         	White=8     	Black=11     Best:        	---       	Black=7      Strong:       	White=3     	Black=2} 0-1

[Event "4NCL Div 2 2024-25"]
[Site "England"]
[Date "2025.01.26"]
[Round "4.21"]
[White "Pitcher, John"]
[Black "Wills, Tom"]
[Result "1-0"]
[Annotator "TA"]
[ECO "B52"]
[WhiteElo "2147"]
[BlackElo "1976"]
[PlyCount "69"]
[EventDate "2024.11.23"]
[EventType "team-tourn"]
[EventCountry "ENG"]
[SourceTitle "playchess.com"]
[Source "ChessBase"]
[SourceQuality "1"]
[TimeControl "40/6000+30:3000+30"]

{[%evp 16,69,31,27,26,16,10,-22,6,0,14,9,18,9,16,10,103,-45,0,0,0,0,0,0,0,8,79,74,227,133,139,145,130,140,193,183,194,187,212,206,249,139,392,391,5269,335,366,364,683,652,29990,29991,29991,29992,29992,29993]} 1. e4 {[%emt 0:10:05]} c5 {[%emt 0:10:06]} 2. Nf3 {[%emt 0:00:17]} d6 {[%emt 0:00:06]} 3. Bb5+ {[%emt 0:00:20]} Bd7 {[%emt 0:00:08]} 4. Bxd7+ {[%emt 0:00:10]} Nxd7 {[%emt 0:00:04]} 5. O-O {[%emt 0:00:31]} Ngf6 {[%emt 0:02:33]} 6. Qe2 {[%emt 0:01:59]} e6 {[%emt 0:01:58]} 7. d4 {[%emt 0:01:20]} cxd4 {[%emt 0:02:03]} 8. Nxd4 {[%emt 0:00:08]} Be7 {[%emt 0:01:36]} 9. c4 {[%emt 0:00:25]} Qa5 {[%emt 0:04:41] B52: Sicilian: Moscow Variation with 3...Bd7.} 10. Nc3 {[%emt 0:06:29]} Rc8 {[%emt 0:00:42]} 11. Nc2 {[%emt 0:13:03]} a6 {[%emt 0:15:37] The position is equal.} 12. Bd2 {[%emt 0:20:09][%cal Oc3d5]} Qc7 $146 {[%emt 0:07:13]} (12... Qc5 13. b3 O-O 14. Nb4 Bd8 15. Nd3 Qc6 16. Kh1 Ba5 17. Rac1 Bxc3 18. Bxc3 Qxe4 {0-1 Lippert,D (2025)-Matthes,A (2146) Berlin Werner Ott op 2022 (3)}) 13. b3 {[%emt 0:02:26]} O-O {[%emt 0:02:01]} 14. Rac1 {[%emt 0:01:29]} Rfe8 {[%emt 0:05:33]} 15. Kh1 {[%emt 0:03:37]} d5 {[%emt 0:08:54]} 16. f4 {[%emt 0:03:13]} (16. exd5 exd5 17. Rb1 (17. cxd5 $2 Ba3 $19) (17. Nxd5 $2 Nxd5 18. cxd5 Ba3 $19) 17... Bc5 $17 (17... dxc4 18. Qxc4 Qe5 19. Qd4 $17)) ({Only move:} 16. cxd5 $16 exd5 17. Nxd5 Nxd5 18. Ne3 (18. exd5 $2 Ba3 $19)) 16... dxc4 {[%emt 0:07:34]} 17. e5 {[%emt 0:00:31]} Nd5 {[%emt 0:00:26]} 18. Nxd5 {[%emt 0:00:44]} exd5 {[%emt 0:00:19]} 19. Ne3 $1 {[%emt 0:00:40][%csl LRc4,LRd5]} Ba3 {[%emt 0:11:49]} 20. Rc2 {[%emt 0:03:21]} Nb6 {[%emt 0:27:07]} (20... Qc6 $11 {keeps the balance.}) 21. Ba5 $1 $16 {[%emt 0:07:49] White is more active.} Red8 {[%emt 0:00:00] [#]} (21... Qc5 $16 22. Bxb6 Qxb6) 22. Rd1 {[%emt 0:13:38]} (22. bxc4 $1 $18 d4 (22... dxc4 $2 23. Nxc4 Re8 24. Nxa3 $18) 23. Nf5) 22... Qc5 {[%emt 0:00:00]} 23. Bxb6 {[%emt 0:00:30]} Qxb6 {[%emt 0:00:00]} 24. Nxd5 {[%emt 0:00:42]} Qa5 {[%emt 0:00:00]} (24... Qe6 $16 25. bxc4 Kh8) 25. Rxc4 $18 {[%emt 0:04:09]} Rxc4 {[%emt 0:00:00]} 26. Qxc4 {[%emt 0:00:51]} Bf8 {[%emt 0:00:00]} 27. h3 {[%emt 0:01:39]} h6 {[%emt 0:02:21]} 28. f5 {[%emt 0:01:29]} (28. Kh2 $18) 28... Qxa2 $2 {[%emt 0:00:48][%mdl 8192] A mistake that costs the game.} (28... Kh8 $16 {is a better defense.} 29. a4 Re8) 29. e6 {[%emt 0:01:39][%cal Od5f6]} b5 $2 {[%emt 0:00:49]} (29... Qa5 30. e7 Bxe7) 30. Qg4 $2 {[%emt 0:03:00]} (30. Nf6+ gxf6 31. Qg4+ (31. Rxd8 $2 bxc4 32. bxc4 Qxc4 $19) 31... Kh7 32. Rxd8) 30... Rxd5 {[%emt 0:00:30]} 31. Rxd5 {[%emt 0:00:12] And now exf7+ would win.} Qxb3 $2 {[%emt 0:00:20]} (31... fxe6 32. fxe6 Be7) 32. Rd8 {[%emt 0:01:44] Intending e7 and mate.} Qe3 {[%emt 0:00:34]} 33. exf7+ {[%emt 0:00:51] White mates.} Kxf7 {[%emt 0:00:26] [#]} 34. Qg6+ $1 {[%emt 0:00:07]} Kg8 {[%emt 0:00:23]} 35. Qe6+ {[%emt 0:01:31] Weighted Error Value: White=0.41/Black=1.09  Loses game:     	---       	Black=1      Mistake:       	White=4     	Black=6      Inaccurate:     	White=1     	Black=3      OK:         	White=7     	Black=4      Best:        	White=2     	---        Strong:       	White=2     	---} (35. Qxa6 $2 {perishes.} Qc1+ 36. Kh2 Qc7+ 37. g3 Qxd8 $19) 1-0

[Event "4NCL Div 2 2024-25"]
[Site "England"]
[Date "2025.01.26"]
[Round "4.22"]
[White "Edwards-Wright, Miles D"]
[Black "Dicen, Elis Denele"]
[Result "1/2-1/2"]
[Annotator "TA"]
[ECO "A17"]
[WhiteElo "1970"]
[BlackElo "2100"]
[PlyCount "107"]
[EventDate "2024.11.23"]
[EventType "team-tourn"]
[EventCountry "ENG"]
[SourceTitle "playchess.com"]
[Source "ChessBase"]
[SourceQuality "1"]
[TimeControl "40/6000+30:3000+30"]

{[%evp 16,107,-8,-27,-27,-26,-17,-24,7,7,0,0,0,0,9,-15,-14,-8,10,2,9,-4,23,19,36,29,46,41,48,55,27,14,14,6,42,32,32,0,0,7,0,0,10,0,0,-10,0,-23,-18,-60,-43,-89,-33,-109,-64,-64,-66,-54,-54,-95,-65,-72,0,-8,-15,-5,0,0,0,0,0,-16,0,-33,-30,-96,-96,-100,-97,-111,-98,-100,0,0,0,0,0,0,0,0,0,0,0,0]} 1. c4 {[%emt 0:10:02]} e6 {[%emt 0:10:07]} 2. Nc3 {[%emt 0:00:04]} d5 {[%emt 0:00:14]} 3. cxd5 {[%emt 0:04:32]} exd5 {[%emt 0:00:08]} 4. d4 {[%emt 0:00:02]} c6 {[%emt 0:00:32]} 5. g3 {[%emt 0:00:39]} Nf6 {[%emt 0:00:42]} 6. Bg2 {[%emt 0:00:07]} Bd6 {[%emt 0:00:22]} 7. Nf3 {[%emt 0:01:42]} O-O {[%emt 0:00:48]} 8. O-O {[%emt 0:00:05]} Bf5 {[%emt 0:01:19]} 9. Nh4 {[%emt 0:01:00]} Be6 {[%emt 0:09:41] A17: English Opening: 1...Nf6 with ...Bb4.} 10. Qc2 {[%emt 0:08:13]} Na6 {[%emt 0:04:19][%cal Bb8a6,Ba6c7,Bc7e6][%mdl 32]} 11. a3 {[%emt 0:01:46]} Nc7 $146 {[%emt 0:01:15] Black has an edge.} (11... h6 12. Nf5 Bc7 13. b4 Qd7 14. Ne3 Rac8 15. Bb2 Ng4 16. Nxg4 Bxg4 17. Rac1 Bd6 {1-0 Fernandez Malagon,M (1737)-Manso Lopez,R (1556) CUB Province-chT Schools 54th 2018 (4.7)}) 12. Nf5 {[%emt 0:03:02]} Bxf5 {[%emt 0:06:03]} 13. Qxf5 {[%emt 0:00:06]} Ne6 {[%emt 0:00:23]} 14. Qd3 {[%emt 0:05:31]} Re8 {[%emt 0:03:16]} 15. e4 {[%emt 0:12:43]} dxe4 {[%emt 0:01:16]} 16. Nxe4 {[%emt 0:02:59]} Nxe4 {[%emt 0:07:49]} 17. Bxe4 {[%emt 0:00:04]} g6 {[%emt 0:00:52]} 18. Bg2 {[%emt 0:01:07]} Bf8 {[%emt 0:01:24]} 19. Be3 {[%emt 0:04:15]} Bg7 {[%emt 0:03:15][%cal Rg7d4]} 20. Rad1 {[%emt 0:00:23]} Qe7 {[%emt 0:13:11]} 21. Qb3 {[%emt 0:03:13]} Rad8 {[%emt 0:04:27]} 22. d5 {[%emt 0:03:54]} cxd5 {[%emt 0:03:37]} 23. Bxd5 {[%emt 0:14:08] This pair of bishops is nice.} b6 {[%emt 0:02:42]} 24. Bxe6 {[%emt 0:02:35]} fxe6 {[%emt 0:06:00]} (24... Qxe6 25. Qxe6 fxe6 26. b4 Rd5) 25. Qb5 {[%emt 0:01:48]} Qf7 {[%emt 0:02:18]} 26. Bg5 {[%emt 0:05:11]} Rd5 {[%emt 0:02:14]} 27. Rxd5 {[%emt 0:02:41]} exd5 {[%emt 0:00:09]} 28. Rd1 {[%emt 0:04:53]} d4 {[%emt 0:00:25]} 29. Qd3 {[%emt 0:00:33]} Rf8 {[%emt 0:01:28]} 30. Rf1 {[%emt 0:00:42] Active counter play!} Qd5 {[%emt 0:01:49]} 31. Bc1 {[%emt 0:01:23]} Rf3 {[%emt 0:03:53]} 32. Qd2 {[%emt 0:01:30]} (32. Qa6 Rf7 33. Rd1 b5 34. Qc8+) 32... d3 {[%emt 0:02:59] White is weak on the light squares} 33. Qb4 {[%emt 0:05:21]} (33. b4 $15 {feels stronger.}) 33... Bd4 {[%emt 0:01:58]} (33... a5 $17 34. Qe1 Rf5) 34. Bd2 {[%emt 0:00:55]} ({Better is} 34. Bf4 $15) 34... a5 {[%emt 0:02:27][%cal Of3f2] ( -> ...Rxf2!)} 35. Qe7 {[%emt 0:01:04] And now Bh6 would win.} Rf7 {[%emt 0:01:15]} (35... Bxb2 36. Bh6 Qa8 37. Qd7 $18) 36. Qe8+ {[%emt 0:00:42]} Rf8 {[%emt 0:03:33]} 37. Qe7 {[%emt 0:00:24]} Bc5 {[%emt 0:02:52][%cal Bd4c5,Bc5f8,Bf8g7][%mdl 32]} 38. Qe1 {[%emt 0:02:31]} Rd8 {[%emt 0:03:01]} (38... a4 $17 39. Bh6 Rd8) 39. b4 $1 $11 {[%emt 0:01:16]} axb4 {[%emt 0:02:35]} 40. axb4 {[%emt 0:00:16]} Bf8 {[%emt 0:03:52]} (40... Bd4 {keeps more tension.} 41. Qe7 Rd7 42. Qe8+ Kg7) 41. Qe3 {[%emt 0:52:08]} b5 {[%emt 0:21:45]} 42. Re1 {[%emt 0:00:00]} Bg7 {[%emt 0:07:03]} 43. h4 {[%emt 0:00:00]} Rf8 {[%emt 0:03:17]} 44. Rf1 {[%emt 0:00:00]} (44. Qe4 {simplifies} Qxe4 45. Rxe4 Ra8 46. Re3) 44... Bd4 {[%emt 0:01:34]} 45. Qg5 {[%emt 0:00:00]} (45. Qe7 $11) 45... Qf3 $17 {[%emt 0:01:38][%cal Rd4f2]} 46. Be3 {[%emt 0:00:00] [#]} d2 $1 {[%emt 0:08:07] Black plays in the center} 47. Bxd4 {[%emt 0:00:00] Counterplay Black} d1=Q {[%emt 0:01:00]} (47... d1=B $2 {loses.} 48. Qe5 $18 (48. Qxb5 Qe2 $18)) 48. Qe5 {[%emt 0:00:00][%csl Gd4][%cal Re5g7] [#] Wards off Qxd4} Qxf1+ {[%emt 0:06:29]} 49. Kxf1 {[%emt 0:00:00][%csl Gd4][%cal Re5g7] KQR-KQB. The position is equal.} Kf7 {[%emt 0:00:35]} 50. Qc7+ {[%emt 0:00:00]} Ke6 $1 {[%emt 0:00:51]} 51. Qe5+ {[%emt 0:00:00]} Kf7 {[%emt 0:00:47]} 52. Qc7+ {[%emt 0:00:00]} Ke6 $1 {[%emt 0:00:25]} 53. Qe5+ {[%emt 0:00:00]} Kf7 {[%emt 0:01:05] and ...Qh1+ would now be decisive} 54. Qc7+ {[%emt 0:00:00] Weighted Error Value: White=0.11 (very precise) /Black=0.11 (very precise)   Mistake:       	White=3     	Black=3      Inaccurate:     	White=2     	Black=5      OK:         	White=20    	Black=17     Best:        	---       	Black=1      Strong:       	White=1     	Black=2      Brilliant:      	---       	Black=1} 1/2-1/2